[Event "2026 Biel Blitz Open"]
[Site "Biel, CH"]
[Date "2026.07.19"]
[Round "3"]
[White "Schweizer, Samuel"]
[Black "Hajduk, Tomasz"]
[Result "1-0"]
[Board "38"]
[TimeControl "180+2"]
[WhiteFideId "1325353"]
[BlackFideId "21811415"]
[WhiteElo "2006"]
[BlackElo "1791"]
[WhiteClock "0:00:43"]
[BlackClock "0:00:47"]
[Variant "Standard"]
[EndDate "2026.07.19"]
[EndTime "12:36:14"]

1. e4 {[%clk 0:02:59]}  c5 {[%clk 0:03:04]} 2. Nf3 {[%clk 0:03:00]}  d6 {[%clk 0:03:05]} 3. d4 {[%clk 0:03:00]}  cxd4 {[%clk 0:03:06]}
4. Nxd4 {[%clk 0:03:01]}  Nf6 {[%clk 0:03:07]} 5. Nc3 {[%clk 0:03:02]}  a6 {[%clk 0:03:09]} 6. h3 {[%clk 0:03:02]}  e5 {[%clk 0:03:08]}
7. Nde2 {[%clk 0:03:03]}  Be6 {[%clk 0:03:09]} 8. g4 {[%clk 0:03:03]}  Be7 {[%clk 0:03:09]} 9. Bg2 {[%clk 0:03:05]}  Nc6 {[%clk 0:03:06]}
10. Be3 {[%clk 0:03:01]}  O-O {[%clk 0:02:56]} 11. O-O {[%clk 0:02:55]}  Rc8 {[%clk 0:02:57]} 12. Qd2 {[%clk 0:02:50]}  b5 {[%clk 0:02:58]}
13. Nd5 {[%clk 0:02:44]}  Bxd5 {[%clk 0:02:47]} 14. exd5 {[%clk 0:02:43]}  Na5 {[%clk 0:02:45]} 15. b3 {[%clk 0:02:44]}  Nb7 {[%clk 0:02:40]}
16. Ng3 {[%clk 0:02:38]}  Qc7 {[%clk 0:02:37]} 17. Nf5 {[%clk 0:02:28]}  Rfe8 {[%clk 0:02:30]} 18. Nxe7+ {[%clk 0:02:19]}  Rxe7 {[%clk 0:02:31]}
19. Rfc1 {[%clk 0:02:17]}  Nc5 {[%clk 0:02:17]} 20. c4 {[%clk 0:02:15]}  b4 {[%clk 0:02:07]} 21. Rc2 {[%clk 0:02:00]}  a5 {[%clk 0:02:07]}
22. Re1 {[%clk 0:01:54]}  Nfe4 {[%clk 0:02:04]} 23. Qc1 {[%clk 0:01:48]}  Nd3 {[%clk 0:01:46]} 24. Qd1 {[%clk 0:01:49]}  Nxe1 {[%clk 0:01:46]}
25. Qxe1 {[%clk 0:01:48]}  Nc3 {[%clk 0:01:45]} 26. a4 {[%clk 0:01:42]}  e4 {[%clk 0:01:28]} 27. Bd4 {[%clk 0:01:28]}  Nxd5 {[%clk 0:01:27]}
28. Re2 {[%clk 0:01:13]}  Nf4 {[%clk 0:01:12]} 29. Bf1 {[%clk 0:01:08]}  Nxe2+ {[%clk 0:01:12]} 30. Qxe2 {[%clk 0:01:08]}  Rce8 {[%clk 0:01:07]}
31. Qe3 {[%clk 0:01:08]}  Re6 {[%clk 0:01:01]} 32. Bb6 {[%clk 0:01:00]}  Qd7 {[%clk 0:00:57]} 33. Bxa5 {[%clk 0:01:00]}  f5 {[%clk 0:00:55]}
34. c5 {[%clk 0:00:56]}  dxc5 {[%clk 0:00:53]} 35. Qxc5 {[%clk 0:00:53]}  Re5 {[%clk 0:00:54]} 36. Qxb4 {[%clk 0:00:51]}  fxg4 {[%clk 0:00:53]}
37. Qc4+ {[%clk 0:00:47]}  Kh8 {[%clk 0:00:54]} 38. Bc3 {[%clk 0:00:47]}  Rg5 {[%clk 0:00:47]} 39. h4 {[%clk 0:00:48]}  Rh5 {[%clk 0:00:42]}
40. Qd4 {[%clk 0:00:46]}  Qxd4 {[%clk 0:00:42]} 41. Bxd4 {[%clk 0:00:46]}  Rxh4 {[%clk 0:00:42]} 42. a5 {[%clk 0:00:47]}  Rh5 {[%clk 0:00:40]}
43. a6 {[%clk 0:00:48]}  Ra5 {[%clk 0:00:40]} 44. b4 {[%clk 0:00:49]}  Ra4 {[%clk 0:00:39]} 45. Bc5 {[%clk 0:00:48]}  Ra8 {[%clk 0:00:39]}
46. b5 {[%clk 0:00:49]}  h5 {[%clk 0:00:37]} 47. b6 {[%clk 0:00:38]}  R8xa6 {[%clk 0:00:38]} 48. b7 {[%clk 0:00:39]}  Ra8 {[%clk 0:00:35]}
49. bxa8=Q+ {[%clk 0:00:39]}  Rxa8 {[%clk 0:00:36]} 50. Bd4 {[%clk 0:00:38]}  Kh7 {[%clk 0:00:36]} 51. Bg2 {[%clk 0:00:39]}  Re8 {[%clk 0:00:37]}
52. Kh2 {[%clk 0:00:40]}  g5 {[%clk 0:00:37]} 53. Kg3 {[%clk 0:00:41]}  Kg6 {[%clk 0:00:35]} 54. Bf1 {[%clk 0:00:41]}  Rd8 {[%clk 0:00:39]}
55. Be3 {[%clk 0:00:43]}  Rd3 {[%clk 0:00:40]} 56. Bg2 {[%clk 0:00:41]}  Kf5 {[%clk 0:00:39]} 57. Bf1 {[%clk 0:00:41]}  h4+ {[%clk 0:00:40]}
58. Kg2 {[%clk 0:00:42]}  h3+ {[%clk 0:00:41]} 59. Kg3 {[%clk 0:00:44]}  Ra3 {[%clk 0:00:42]} 60. Bb5 {[%clk 0:00:44]}  Ra1 {[%clk 0:00:41]}
61. Bd7+ {[%clk 0:00:44]}  Kg6 {[%clk 0:00:40]} 62. Bxg4 {[%clk 0:00:45]}  Rg1+ {[%clk 0:00:40]} 63. Kxh3 {[%clk 0:00:44]}  Ra1 {[%clk 0:00:40]}
64. Kg3 {[%clk 0:00:44]}  Ra3 {[%clk 0:00:41]} 65. Be6 {[%clk 0:00:45]}  Kf6 {[%clk 0:00:41]} 66. Bd5 {[%clk 0:00:46]}  Ra4 {[%clk 0:00:42]}
67. Bc1 {[%clk 0:00:44]}  Rb4 {[%clk 0:00:42]} 68. Be3 {[%clk 0:00:41]}  Ke5 {[%clk 0:00:42]} 69. Bf7 {[%clk 0:00:41]}  Kf6 {[%clk 0:00:43]}
70. Bh5 {[%clk 0:00:42]}  Rb3 {[%clk 0:00:44]} 71. Bd1 {[%clk 0:00:42]}  Rb1 {[%clk 0:00:45]} 72. Bc2 {[%clk 0:00:43]}  Rg1+ {[%clk 0:00:46]}
73. Kh2 {[%clk 0:00:44]}  Ra1 {[%clk 0:00:46]} 74. Bd4+ {[%clk 0:00:45]}  Kf5 {[%clk 0:00:47]} 75. Bxa1 {[%clk 0:00:43]} 1-0

[Event "2026 Biel Blitz Open"]
[Site "Biel, CH"]
[Date "2026.07.19"]
[Round "3"]
[White "Schaefer, Gion"]
[Black "Dietiker, Manuel"]
[Result "0-1"]
[Board "39"]
[TimeControl "180+2"]
[WhiteFideId "1362097"]
[BlackFideId "1317377"]
[WhiteElo "1763"]
[BlackElo "2002"]
[WhiteClock "0:02:07"]
[BlackClock "0:01:49"]
[Variant "Standard"]
[EndDate "2026.07.19"]
[EndTime "12:23:34"]

1. e4 {[%clk 0:03:02]}  c5 {[%clk 0:03:03]} 2. Nf3 {[%clk 0:03:03]}  e6 {[%clk 0:03:05]} 3. d4 {[%clk 0:03:04]}  cxd4 {[%clk 0:03:05]}
4. Nxd4 {[%clk 0:03:02]}  Nc6 {[%clk 0:03:06]} 5. Nc3 {[%clk 0:03:06]}  Qc7 {[%clk 0:03:07]} 6. Ndb5 {[%clk 0:02:58]}  Qb8 {[%clk 0:03:08]}
7. g3 {[%clk 0:02:59]}  a6 {[%clk 0:03:08]} 8. Bf4 {[%clk 0:02:57]}  e5 {[%clk 0:03:06]} 9. Be3 {[%clk 0:02:41]}  axb5 {[%clk 0:03:05]}
10. Nxb5 {[%clk 0:02:42]}  Nf6 {[%clk 0:03:00]} 11. Bb6 {[%clk 0:02:39]}  Be7 {[%clk 0:02:31]} 12. Nc7+ {[%clk 0:02:39]}  Kf8 {[%clk 0:02:32]}
13. Nb5 {[%clk 0:02:26]}  Ra6 {[%clk 0:02:21]} 14. Bc7 {[%clk 0:02:21]}  Qa8 {[%clk 0:02:14]} 15. Bd6 {[%clk 0:02:15]}  Nxe4 {[%clk 0:01:52]}
16. Bxe7+ {[%clk 0:02:09]}  Nxe7 {[%clk 0:01:53]} 17. Nc7 {[%clk 0:02:08]}  Qa7 {[%clk 0:01:54]} 18. Nxa6 {[%clk 0:02:07]}  Qxf2# {[%clk 0:01:49]} 0-1

[Event "2026 Biel Blitz Open"]
[Site "Biel, CH"]
[Date "2026.07.19"]
[Round "3"]
[White "Pinelli, Gian"]
[Black "Altenburger, Rene"]
[Result "1/2-1/2"]
[Board "41"]
[TimeControl "180+2"]
[WhiteFideId "1348710"]
[BlackFideId "1305581"]
[WhiteElo "1751"]
[BlackElo "1990"]
[WhiteClock "0:00:37"]
[BlackClock "0:00:29"]
[Variant "Standard"]
[EndDate "2026.07.19"]
[EndTime "12:28:58"]

1. d4 {[%clk 0:03:02]}  Nf6 {[%clk 0:03:02]} 2. c4 {[%clk 0:03:03]}  g6 {[%clk 0:03:03]} 3. Nc3 {[%clk 0:03:04]}  d5 {[%clk 0:03:04]}
4. cxd5 {[%clk 0:03:05]}  Nxd5 {[%clk 0:03:05]} 5. e4 {[%clk 0:03:05]}  Nxc3 {[%clk 0:03:06]} 6. bxc3 {[%clk 0:03:06]}  Bg7 {[%clk 0:03:07]}
7. Be3 {[%clk 0:03:07]}  c5 {[%clk 0:03:07]} 8. Qd2 {[%clk 0:03:07]}  Nc6 {[%clk 0:02:58]} 9. Nf3 {[%clk 0:03:05]}  cxd4 {[%clk 0:02:53]}
10. cxd4 {[%clk 0:03:06]}  O-O {[%clk 0:02:49]} 11. Rc1 {[%clk 0:03:06]}  Qa5 {[%clk 0:02:40]} 12. Qxa5 {[%clk 0:03:04]}  Nxa5 {[%clk 0:02:41]}
13. d5 {[%clk 0:02:59]}  Bg4 {[%clk 0:01:51]} 14. Be2 {[%clk 0:02:56]}  Bxf3 {[%clk 0:01:50]} 15. gxf3 {[%clk 0:02:56]}  Rac8 {[%clk 0:01:45]}
16. O-O {[%clk 0:02:55]}  Bb2 {[%clk 0:01:02]} 17. Rb1 {[%clk 0:02:52]}  Bc3 {[%clk 0:00:57]} 18. Rfc1 {[%clk 0:02:49]}  b6 {[%clk 0:00:26]}
19. Ba6 {[%clk 0:02:40]}  Rc7 {[%clk 0:00:24]} 20. Bd2 {[%clk 0:02:35]}  Be5 {[%clk 0:00:24]} 21. Rxc7 {[%clk 0:02:35]}  Bxc7 {[%clk 0:00:25]}
22. Rc1 {[%clk 0:02:36]}  Bd6 {[%clk 0:00:25]} 23. Bxa5 {[%clk 0:02:36]}  bxa5 {[%clk 0:00:25]} 24. Rb1 {[%clk 0:02:35]}  Rb8 {[%clk 0:00:25]}
25. Rxb8+ {[%clk 0:02:19]}  Bxb8 {[%clk 0:00:26]} 26. h3 {[%clk 0:02:20]}  Kg7 {[%clk 0:00:26]} 27. Kf1 {[%clk 0:02:18]}  Kf6 {[%clk 0:00:27]}
28. Ke2 {[%clk 0:02:20]}  Ke5 {[%clk 0:00:29]} 29. Ke3 {[%clk 0:02:19]}  Kd6 {[%clk 0:00:28]} 30. Kd4 {[%clk 0:02:18]}  Bc7 {[%clk 0:00:28]}
31. e5+ {[%clk 0:02:16]}  Kd7 {[%clk 0:00:29]} 32. Bb5+ {[%clk 0:02:15]}  Kd8 {[%clk 0:00:30]} 33. Bc6 {[%clk 0:01:53]}  Bb6+ {[%clk 0:00:31]}
34. Kc4 {[%clk 0:01:54]}  Bxf2 {[%clk 0:00:32]} 35. Kb5 {[%clk 0:01:53]}  Bd4 {[%clk 0:00:31]} 36. e6 {[%clk 0:01:44]}  fxe6 {[%clk 0:00:28]}
37. dxe6 {[%clk 0:01:45]}  Kc7 {[%clk 0:00:29]} 38. Bd7 {[%clk 0:01:40]}  Kd6 {[%clk 0:00:30]} 39. Kc4 {[%clk 0:01:30]}  Ke5 {[%clk 0:00:28]}
40. Kd3 {[%clk 0:01:31]}  Bb6 {[%clk 0:00:26]} 41. Ke2 {[%clk 0:00:38]}  g5 {[%clk 0:00:26]} 42. Kf1 {[%clk 0:00:35]}  h5 {[%clk 0:00:26]}
43. Kg2 {[%clk 0:00:36]}  h4 {[%clk 0:00:27]} 44. Bc8 {[%clk 0:00:34]}  Kd4 {[%clk 0:00:27]} 45. Bd7 {[%clk 0:00:35]}  Bc7 {[%clk 0:00:27]}
46. a4 {[%clk 0:00:35]}  Bg3 {[%clk 0:00:26]} 47. Bb5 {[%clk 0:00:34]}  Ke5 {[%clk 0:00:26]} 48. Bd7 {[%clk 0:00:35]}  Kd6 {[%clk 0:00:27]}
49. Bc8 {[%clk 0:00:35]}  Bf4 {[%clk 0:00:27]} 50. Bd7 {[%clk 0:00:35]}  Kc7 {[%clk 0:00:28]} 51. Bb5 {[%clk 0:00:35]}  Kd6 {[%clk 0:00:27]}
52. Bd7 {[%clk 0:00:36]}  a6 {[%clk 0:00:28]} 53. Bc8 {[%clk 0:00:36]}  Ke5 {[%clk 0:00:29]} 54. Bd7 {[%clk 0:00:37]}  Bg3 {[%clk 0:00:29]}
55. Bc8 {[%clk 0:00:37]}  Kd6 {[%clk 0:00:28]} 56. Bd7 {[%clk 0:00:38]}  Kc5 {[%clk 0:00:28]} 57. Be8 {[%clk 0:00:36]}  Kb4 {[%clk 0:00:29]}
58. Bd7 {[%clk 0:00:37]} 1/2-1/2

[Event "2026 Biel Blitz Open"]
[Site "Biel, CH"]
[Date "2026.07.19"]
[Round "3"]
[White "Mikavica, Dragoljub"]
[Black "Tcheau, Alain"]
[Result "0-1"]
[Board "42"]
[TimeControl "180+2"]
[WhiteFideId "1308726"]
[BlackFideId "1306014"]
[WhiteElo "1983"]
[BlackElo "1777"]
[WhiteClock "0:00:04"]
[BlackClock "0:00:37"]
[Variant "Standard"]
[EndDate "2026.07.19"]
[EndTime "12:28:47"]

1. e4 {[%clk 0:00:00]}  c6 {[%clk 0:00:00]} 2. Nf3 {[%clk 0:03:00]}  d5 {[%clk 0:00:00]} 3. e5 {[%clk 0:00:00]}  Bf5 {[%clk 0:00:00]}
4. c3 {[%clk 0:00:00]}  h6 {[%clk 0:00:00]} 5. d4 {[%clk 0:00:00]}  e6 {[%clk 0:00:00]} 6. Bd3 {[%clk 0:00:00]}  Bxd3 {[%clk 0:00:00]}
7. Qxd3 {[%clk 0:00:00]}  Ne7 {[%clk 0:00:00]} 8. Nbd2 {[%clk 0:00:00]}  Ng6 {[%clk 0:00:00]} 9. Nf1 {[%clk 0:00:00]}  Be7 {[%clk 0:00:00]}
10. Ng3 {[%clk 0:00:00]}  Nd7 {[%clk 0:00:00]} 11. Be3 {[%clk 0:02:53]}  O-O {[%clk 0:03:01]} 12. O-O {[%clk 0:02:52]}  a6 {[%clk 0:03:00]}
13. Ne2 {[%clk 0:02:44]}  Rc8 {[%clk 0:02:58]} 14. b4 {[%clk 0:02:44]}  Nh4 {[%clk 0:02:45]} 15. Nd2 {[%clk 0:02:37]}  Nf5 {[%clk 0:02:26]}
16. Bf4 {[%clk 0:02:29]}  g5 {[%clk 0:02:25]} 17. Bg3 {[%clk 0:02:31]}  Nxg3 {[%clk 0:02:25]} 18. Nxg3 {[%clk 0:02:31]}  Qe8 {[%clk 0:01:44]}
19. Rfe1 {[%clk 0:02:22]}  Bd8 {[%clk 0:01:37]} 20. Ndf1 {[%clk 0:01:57]}  f5 {[%clk 0:01:22]} 21. exf6 {[%clk 0:01:53]}  Rxf6 {[%clk 0:01:21]}
22. Nh5 {[%clk 0:01:52]}  Qxh5 {[%clk 0:01:18]} 23. Ng3 {[%clk 0:01:45]}  Qg6 {[%clk 0:01:19]} 24. Qe2 {[%clk 0:01:41]}  Bc7 {[%clk 0:01:17]}
25. Nh5 {[%clk 0:01:38]}  Rf7 {[%clk 0:01:09]} 26. Qg4 {[%clk 0:01:34]}  Nf8 {[%clk 0:01:04]} 27. Re2 {[%clk 0:01:23]}  Re8 {[%clk 0:01:03]}
28. Rae1 {[%clk 0:01:24]}  Kh7 {[%clk 0:00:53]} 29. Re3 {[%clk 0:01:06]}  Rfe7 {[%clk 0:00:52]} 30. Rf3 {[%clk 0:01:02]}  Rf7 {[%clk 0:00:48]}
31. Rh3 {[%clk 0:00:56]}  e5 {[%clk 0:00:40]} 32. Ng3 {[%clk 0:00:40]}  Rf4 {[%clk 0:00:38]} 33. Qe2 {[%clk 0:00:35]}  e4 {[%clk 0:00:39]}
34. Nh5 {[%clk 0:00:33]}  Rf7 {[%clk 0:00:38]} 35. Ng3 {[%clk 0:00:25]}  Qf6 {[%clk 0:00:39]} 36. f3 {[%clk 0:00:13]}  Ng6 {[%clk 0:00:38]}
37. fxe4 {[%clk 0:00:12]}  Nf4 {[%clk 0:00:39]} 38. Qg4 {[%clk 0:00:04]}  Nxh3+ {[%clk 0:00:37]} 39. gxh3 {[%clk 0:00:00]}  Qf2+ {[%clk 0:00:37]} 0-1

[Event "2026 Biel Blitz Open"]
[Site "Biel, CH"]
[Date "2026.07.19"]
[Round "3"]
[White "Kwiatkowski, Maciej"]
[Black "Damen, Josephine"]
[Result "1-0"]
[Board "43"]
[TimeControl "180+2"]
[WhiteFideId "1360175"]
[BlackFideId "1074369"]
[WhiteElo "1967"]
[BlackElo "1766"]
[BlackTitle "WCM"]
[WhiteClock "0:01:03"]
[BlackClock "0:00:04"]
[Variant "Standard"]
[EndDate "2026.07.19"]
[EndTime "12:34:57"]

1. e4 {[%clk 0:03:02]}  e5 {[%clk 0:03:03]} 2. Nf3 {[%clk 0:03:03]}  Nc6 {[%clk 0:03:04]} 3. Bb5 {[%clk 0:03:04]}  a6 {[%clk 0:03:06]}
4. Ba4 {[%clk 0:03:05]}  Nf6 {[%clk 0:03:07]} 5. O-O {[%clk 0:03:05]}  Be7 {[%clk 0:03:07]} 6. Re1 {[%clk 0:03:06]}  b5 {[%clk 0:03:08]}
7. Bb3 {[%clk 0:03:07]}  O-O {[%clk 0:03:06]} 8. c3 {[%clk 0:03:08]}  d5 {[%clk 0:03:07]} 9. exd5 {[%clk 0:03:09]}  Nxd5 {[%clk 0:03:07]}
10. d4 {[%clk 0:03:08]}  exd4 {[%clk 0:02:41]} 11. Nxd4 {[%clk 0:03:09]}  Nxd4 {[%clk 0:02:32]} 12. Qxd4 {[%clk 0:03:09]}  Bb7 {[%clk 0:02:20]}
13. Nd2 {[%clk 0:02:48]}  Bf6 {[%clk 0:02:17]} 14. Qg4 {[%clk 0:02:46]}  Re8 {[%clk 0:02:02]} 15. Nf3 {[%clk 0:02:21]}  Rxe1+ {[%clk 0:01:59]}
16. Nxe1 {[%clk 0:02:22]}  Qe7 {[%clk 0:01:54]} 17. Nf3 {[%clk 0:02:13]}  Re8 {[%clk 0:01:49]} 18. Bd2 {[%clk 0:02:10]}  Qd6 {[%clk 0:01:24]}
19. h3 {[%clk 0:01:56]}  g6 {[%clk 0:01:04]} 20. Ng5 {[%clk 0:01:46]}  Bg7 {[%clk 0:00:17]} 21. Qf3 {[%clk 0:01:25]}  Qf6 {[%clk 0:00:08]}
22. Bxd5 {[%clk 0:01:17]}  Bxd5 {[%clk 0:00:07]} 23. Qxd5 {[%clk 0:01:17]}  h6 {[%clk 0:00:06]} 24. Nf3 {[%clk 0:01:08]}  Rd8 {[%clk 0:00:04]}
25. Qe4 {[%clk 0:01:04]}  Kh7 {[%clk 0:00:04]} 26. Re1 {[%clk 0:01:03]}  Qd6 {[%clk 0:00:00]} 27. Bf4 {[%clk 0:01:03]}  Qb6 {[%clk 0:00:00]} 1-0

[Event "2026 Biel Blitz Open"]
[Site "Biel, CH"]
[Date "2026.07.19"]
[Round "3"]
[White "Vihaan Dumir"]
[Black "Bujes, Aurelien"]
[Result "1-0"]
[Board "45"]
[TimeControl "180+2"]
[WhiteFideId "25901010"]
[BlackFideId "1347179"]
[WhiteElo "1965"]
[BlackElo "1741"]
[WhiteTitle "CM"]
[WhiteClock "0:00:47"]
[BlackClock "0:01:19"]
[Variant "Standard"]
[EndDate "2026.07.19"]
[EndTime "12:34:46"]

1. e4 {[%clk 0:03:03]}  d6 {[%clk 0:03:02]} 2. d4 {[%clk 0:03:02]}  g6 {[%clk 0:03:02]} 3. Nc3 {[%clk 0:03:02]}  Bg7 {[%clk 0:03:03]}
4. Be3 {[%clk 0:03:03]}  Nd7 {[%clk 0:03:03]} 5. Qd2 {[%clk 0:03:04]}  c5 {[%clk 0:03:04]} 6. O-O-O {[%clk 0:03:02]}  cxd4 {[%clk 0:03:04]}
7. Bxd4 {[%clk 0:03:02]}  Bxd4 {[%clk 0:03:05]} 8. Qxd4 {[%clk 0:03:02]}  Ngf6 {[%clk 0:03:05]} 9. h4 {[%clk 0:02:57]}  Qa5 {[%clk 0:03:05]}
10. f4 {[%clk 0:02:46]}  Nb6 {[%clk 0:02:45]} 11. e5 {[%clk 0:02:30]}  Bg4 {[%clk 0:02:01]} 12. exf6 {[%clk 0:02:10]}  Bxd1 {[%clk 0:02:02]}
13. fxe7 {[%clk 0:02:02]}  Kxe7 {[%clk 0:02:00]} 14. Qe3+ {[%clk 0:01:45]}  Kd7 {[%clk 0:01:56]} 15. Bb5+ {[%clk 0:01:43]}  Kd8 {[%clk 0:01:51]}
16. Qd4 {[%clk 0:01:40]}  Kc7 {[%clk 0:01:38]} 17. Kxd1 {[%clk 0:01:32]}  a6 {[%clk 0:01:36]} 18. Bd3 {[%clk 0:01:26]}  Rhe8 {[%clk 0:01:36]}
19. Nf3 {[%clk 0:01:20]}  h6 {[%clk 0:01:34]} 20. Qg7 {[%clk 0:01:07]}  Re7 {[%clk 0:01:23]} 21. Qxh6 {[%clk 0:00:46]}  Rae8 {[%clk 0:01:22]}
22. Qg5 {[%clk 0:00:46]}  Kb8 {[%clk 0:01:19]} 23. Qxa5 {[%clk 0:00:47]} 1-0

[Event "2026 Biel Blitz Open"]
[Site "Biel, CH"]
[Date "2026.07.19"]
[Round "3"]
[White "Amsellem, Daniel"]
[Black "Floure, Alexan"]
[Result "0-1"]
[Board "46"]
[TimeControl "180+2"]
[WhiteFideId "1363522"]
[BlackFideId "1346610"]
[WhiteElo "1723"]
[BlackElo "1960"]
[WhiteClock "0:00:03"]
[BlackClock "0:00:13"]
[Variant "Standard"]
[EndDate "2026.07.19"]
[EndTime "12:36:12"]

1. c4 {[%clk 0:03:02]}  e6 {[%clk 0:03:03]} 2. g3 {[%clk 0:02:58]}  d5 {[%clk 0:03:01]} 3. d4 {[%clk 0:02:54]}  c6 {[%clk 0:03:02]}
4. Bg2 {[%clk 0:02:54]}  dxc4 {[%clk 0:02:58]} 5. a4 {[%clk 0:02:48]}  Nf6 {[%clk 0:02:43]} 6. Nf3 {[%clk 0:02:49]}  Nbd7 {[%clk 0:02:10]}
7. O-O {[%clk 0:02:47]}  Bd6 {[%clk 0:01:51]} 8. Qc2 {[%clk 0:02:43]}  b5 {[%clk 0:01:36]} 9. e4 {[%clk 0:02:21]}  Bc7 {[%clk 0:01:37]}
10. axb5 {[%clk 0:02:12]}  cxb5 {[%clk 0:01:37]} 11. Na3 {[%clk 0:02:05]}  Rb8 {[%clk 0:01:33]} 12. Bd2 {[%clk 0:01:27]}  O-O {[%clk 0:01:29]}
13. Rfd1 {[%clk 0:01:03]}  a6 {[%clk 0:01:22]} 14. Bb4 {[%clk 0:00:59]}  Re8 {[%clk 0:01:21]} 15. d5 {[%clk 0:00:53]}  a5 {[%clk 0:01:11]}
16. Bc3 {[%clk 0:00:47]}  exd5 {[%clk 0:00:58]} 17. exd5 {[%clk 0:00:43]}  Ne4 {[%clk 0:00:57]} 18. Ne5 {[%clk 0:00:29]}  Nxc3 {[%clk 0:00:49]}
19. Nc6 {[%clk 0:00:19]}  Qf6 {[%clk 0:00:34]} 20. bxc3 {[%clk 0:00:15]}  Rb6 {[%clk 0:00:31]} 21. Rab1 {[%clk 0:00:13]}  Ba6 {[%clk 0:00:28]}
22. Nxa5 {[%clk 0:00:12]}  Bd6 {[%clk 0:00:20]} 23. Nc6 {[%clk 0:00:11]}  Bxa3 {[%clk 0:00:19]} 24. Nd4 {[%clk 0:00:10]}  Bc5 {[%clk 0:00:18]}
25. Nc6 {[%clk 0:00:10]}  Ne5 {[%clk 0:00:14]} 26. Nxe5 {[%clk 0:00:11]}  Qxe5 {[%clk 0:00:13]} 27. Rd2 {[%clk 0:00:09]}  Bb7 {[%clk 0:00:12]}
28. Rbd1 {[%clk 0:00:10]}  Bd6 {[%clk 0:00:12]} 29. f4 {[%clk 0:00:09]}  Qe3+ {[%clk 0:00:13]} 30. Kh1 {[%clk 0:00:10]}  h6 {[%clk 0:00:13]}
31. Qc1 {[%clk 0:00:03]}  Bc8 {[%clk 0:00:13]} 32. Rd4 {[%clk 0:00:03]}  Bg4 {[%clk 0:00:13]} 33. Rf1 {[%clk 0:00:00]} 0-1